[Event "Qatar Masters-B 2024"]
[Site "Doha"]
[Date "2024.12.09"]
[Round "6.8"]
[White "Abdulrahim, Salem"]
[Black "Amulya Guruprasad"]
[Result "1/2-1/2"]
[ECO "B92"]
[WhiteElo "1858"]
[BlackElo "1718"]
[Annotator "NA COMBH"]
[PlyCount "140"]
[EventDate "2024.11.24"]
[EventType "swiss"]
[EventCountry "QAT"]
[SourceTitle "playchess.com"]
[Source "ChessBase"]
[SourceQuality "1"]
[TimeControl "40/5400+30:1800+30"]

1. e4 {[%emt 0:00:05]} c5 {[%emt 0:00:03]} 2. Nf3 {[%emt 0:00:09]} d6 {[%emt 0:00:04]} 3. d4 {[%emt 0:00:09]} cxd4 {[%emt 0:00:03]} 4. Nxd4 {[%emt 0:00:05]} Nf6 {[%emt 0:00:04]} 5. Nc3 {[%emt 0:00:41]} a6 {[%emt 0:00:04]} 6. Be2 {[%emt 0:01:38]} e5 {[%emt 0:17:25]} 7. Nb3 {[%emt 0:00:15]} Be6 {[%emt 0:00:03]} 8. O-O {[%emt 0:00:38]} b5 {[%emt 0:01:05]} 9. Bg5 {[%emt 0:05:22]} Be7 {[%emt 0:00:06]} 10. Bxf6 {[%emt 0:00:54]} Bxf6 {[%emt 0:01:20]} 11. Bg4 {[%emt 0:00:19]} O-O {[%emt 0:08:07]} 12. Nd5 {[%emt 0:03:23]} Nd7 {[%emt 0:02:26]} 13. h3 {[%emt 0:13:16]} Bxd5 {[%emt 0:09:27]} 14. Qxd5 {[%emt 0:15:21]} Nb6 {[%emt 0:00:21]} 15. Qd3 {[%emt 0:01:50]} Nc4 {[%emt 0:02:10]} 16. Rab1 {[%emt 0:00:56]} Bg5 {[%emt 0:06:02]} 17. Rfd1 {[%emt 0:06:16]} Qc7 {[%emt 0:03:03]} 18. Nc1 {[%emt 0:06:59]} Bxc1 {[%emt 0:01:14]} 19. Rdxc1 {[%emt 0:00:09]} g6 {[%emt 0:04:03]} 20. b3 {[%emt 0:12:28]} Na5 {[%emt 0:06:06]} 21. h4 {[%emt 0:05:23]} Nc6 {[%emt 0:08:07]} 22. c4 {[%emt 0:01:18]} b4 {[%emt 0:01:07]} 23. c5 {[%emt 0:09:02]} Nd4 {[%emt 0:02:30]} 24. c6 {[%emt 0:00:02]} a5 {[%emt 0:17:50]} 25. Bd7 {[%emt 0:01:28]} Rab8 {[%emt 0:05:53]} 26. Rc4 {[%emt 0:07:46]} Nb5 {[%emt 0:00:52]} 27. Rd1 {[%emt 0:01:02]} Rfd8 {[%emt 0:00:24]} 28. h5 {[%emt 0:03:09]} Rxd7 {[%emt 0:02:54]} 29. cxd7 {[%emt 0:00:16]} Qxd7 {[%emt 0:00:01]} 30. h6 {[%emt 0:01:18]} Qe7 {[%emt 0:01:31]} 31. Rdc1 {[%emt 0:03:23]} Qf8 {[%emt 0:00:34]} 32. Qh3 {[%emt 0:00:50]} f5 {[%emt 0:00:36]} 33. Qd3 {[%emt 0:00:30]} Qxh6 {[%emt 0:00:26]} 34. Rc8+ {[%emt 0:00:08]} Kg7 {[%emt 0:00:04]} 35. Qd5 {[%emt 0:00:30]} Qg5 {[%emt 0:01:00]} 36. exf5 {[%emt 0:00:25]} Rxc8 {[%emt 0:00:21]} 37. Rxc8 {[%emt 0:00:12]} Nc3 {[%emt 0:00:02]} 38. Rg8+ {[%emt 0:00:58]} Kh6 {[%emt 0:00:06]} 39. Qf3 {[%emt 0:00:17]} Qxf5 {[%emt 0:00:39]} 40. Qe3+ {[%emt 0:00:50]} Qg5 {[%emt 0:00:51]} 41. Qh3+ {[%emt 0:30:36]} Qh5 {[%emt 0:30:01]} 42. Qe3+ {[%emt 0:00:35]} Qg5 {[%emt 0:00:01]} 43. Qh3+ {[%emt 0:00:26]} Qh5 {[%emt 0:00:01]} 44. Qe3+ {[%emt 0:00:41]} Qg5 {[%emt 0:00:05]} 45. Qh3+ {[%emt 0:00:22]} Qh5 {[%emt 0:00:06]} 46. Qxh5+ {[%emt 0:00:24]} Kxh5 {[%emt 0:00:05]} 47. Ra8 {[%emt 0:00:09]} Nxa2 {[%emt 0:00:09]} 48. Rxa5 {[%emt 0:00:05]} Nc3 {[%emt 0:00:03]} 49. Kf1 {[%emt 0:00:30]} Kg4 {[%emt 0:00:07]} 50. Ke1 {[%emt 0:00:07]} d5 {[%emt 0:00:38]} 51. Ra7 {[%emt 0:00:25]} h5 {[%emt 0:01:09]} 52. Rb7 {[%emt 0:00:11]} h4 {[%emt 0:02:33]} 53. Rxb4+ {[%emt 0:00:16]} d4 {[%emt 0:00:01]} 54. Rc4 {[%emt 0:00:59]} g5 {[%emt 0:00:40]} 55. b4 {[%emt 0:00:11]} Kf5 {[%emt 0:00:03]} 56. Rc5 {[%emt 0:01:28]} g4 {[%emt 0:02:07]} 57. b5 {[%emt 0:00:01]} h3 {[%emt 0:00:04]} 58. gxh3 {[%emt 0:00:08]} gxh3 {[%emt 0:00:03]} 59. Kf1 {[%emt 0:00:41]} Na4 {[%emt 0:00:37]} 60. Rc4 {[%emt 0:00:27]} Nb6 {[%emt 0:00:51]} 61. Rc6 {[%emt 0:00:24]} Nd5 {[%emt 0:00:43]} 62. Rd6 {[%emt 0:00:46]} Ke4 {[%emt 0:00:19]} 63. Ke2 {[%emt 0:01:52]} Nc3+ {[%emt 0:00:07]} 64. Ke1 {[%emt 0:00:33]} Nxb5 {[%emt 0:00:08]} 65. Rh6 {[%emt 0:00:04]} Nc3 {[%emt 0:00:43]} 66. Rh4+ {[%emt 0:00:54]} Kf3 {[%emt 0:00:52]} 67. Rxh3+ {[%emt 0:00:07]} Kg4 {[%emt 0:00:05]} 68. Rh8 {[%emt 0:00:11]} Nd5 {[%emt 0:01:37]} 69. Re8 {[%emt 0:00:44]} Kf4 {[%emt 0:00:52]} 70. Ke2 {[%emt 0:00:46]} Nb4 {[%emt 0:00:53]} 1/2-1/2

[Event "Qatar Masters-B 2024"]
[Site "Doha"]
[Date "2024.12.09"]
[Round "6.9"]
[White "Zozek Salah Mohammed"]
[Black "Ashwath Narayanan P"]
[Result "1-0"]
[ECO "E05"]
[WhiteElo "2206"]
[BlackElo "1760"]
[Annotator "RC"]
[PlyCount "97"]
[EventDate "2024.11.24"]
[EventType "swiss"]
[EventCountry "QAT"]
[SourceTitle "playchess.com"]
[Source "ChessBase"]
[SourceQuality "1"]
[TimeControl "40/5400+30:1800+30"]

1. d4 {[%emt 0:00:02]} Nf6 {[%emt 0:00:17]} 2. Nf3 {[%emt 0:00:02]} d5 {[%emt 0:00:11]} 3. c4 {[%emt 0:00:03]} e6 {[%emt 0:00:06]} 4. g3 {[%emt 0:00:01]} Be7 {[%emt 0:00:10]} 5. Bg2 {[%emt 0:00:04]} O-O {[%emt 0:00:13]} 6. O-O {[%emt 0:00:04]} dxc4 {[%emt 0:00:06]} 7. Qc2 {[%emt 0:00:07]} a6 {[%emt 0:00:52]} 8. Qxc4 {[%emt 0:03:52]} Bd7 {[%emt 0:05:34]} 9. Nc3 {[%emt 0:05:38]} Bc6 {[%emt 0:00:18]} 10. Qd3 {[%emt 0:00:24]} Nbd7 {[%emt 0:01:58]} 11. Rd1 {[%emt 0:01:22]} b5 {[%emt 0:04:12]} 12. a3 {[%emt 0:01:24]} Bb7 {[%emt 0:03:23]} 13. b4 {[%emt 0:02:04]} Nb6 {[%emt 0:01:31]} 14. Ne5 {[%emt 0:03:48]} Nbd5 {[%emt 0:03:30]} 15. Nxd5 {[%emt 0:01:22]} Nxd5 {[%emt 0:02:52]} 16. e4 {[%emt 0:01:49]} Nf6 {[%emt 0:00:23]} 17. Bf4 {[%emt 0:02:22]} a5 {[%emt 0:12:22]} 18. d5 {[%emt 0:10:19]} axb4 {[%emt 0:11:14]} 19. Qxb5 {[%emt 0:01:38]} Ba6 {[%emt 0:00:22]} 20. Qc6 {[%emt 0:01:56]} exd5 {[%emt 0:01:07]} 21. axb4 {[%emt 0:03:28]} Be2 {[%emt 0:01:55]} 22. Rxa8 {[%emt 0:00:36]} Qxa8 {[%emt 0:00:00]} 23. Re1 {[%emt 0:00:44]} Qa2 {[%emt 0:03:33]} 24. exd5 {[%emt 0:04:35]} Bxb4 {[%emt 0:01:56]} 25. Rc1 {[%emt 0:00:30]} Bd6 {[%emt 0:05:27]} 26. Nd7 {[%emt 0:05:15]} Nxd7 {[%emt 0:04:37]} 27. Bxd6 {[%emt 0:00:03]} cxd6 {[%emt 0:00:18]} 28. Qxd7 {[%emt 0:00:02]} Qa6 {[%emt 0:05:16]} 29. h4 {[%emt 0:07:20]} g6 {[%emt 0:01:31]} 30. Qe7 {[%emt 0:02:13]} Bd3 {[%emt 0:05:22]} 31. Qf6 {[%emt 0:03:22]} Qb6 {[%emt 0:02:39]} 32. Rc6 {[%emt 0:01:23]} Qd8 {[%emt 0:01:33]} 33. Qf4 {[%emt 0:01:33]} Re8 {[%emt 0:01:24]} 34. Rxd6 {[%emt 0:00:23]} Qb8 {[%emt 0:00:25]} 35. Qf6 {[%emt 0:00:20]} Bf5 {[%emt 0:02:25]} 36. Kh2 {[%emt 0:04:01]} Qa7 {[%emt 0:01:19]} 37. h5 {[%emt 0:04:34]} Qe7 {[%emt 0:01:42]} 38. Qxe7 {[%emt 0:00:43]} Rxe7 {[%emt 0:00:06]} 39. h6 {[%emt 0:00:07]} f6 {[%emt 0:01:05]} 40. Rxf6 {[%emt 0:00:34]} Rf7 {[%emt 0:00:12]} 41. Rb6 {[%emt 0:30:18]} Kf8 {[%emt 0:31:00]} 42. f4 {[%emt 0:00:42]} Re7 {[%emt 0:00:39]} 43. Rb8+ {[%emt 0:00:40]} Kf7 {[%emt 0:00:30]} 44. Rh8 {[%emt 0:01:17]} Kf6 {[%emt 0:03:44]} 45. Bf3 {[%emt 0:01:06]} Re3 {[%emt 0:02:45]} 46. Kg2 {[%emt 0:00:10]} Re7 {[%emt 0:00:40]} 47. g4 {[%emt 0:00:08]} Bxg4 {[%emt 0:02:41]} 48. Bxg4 {[%emt 0:00:03]} g5 {[%emt 0:00:08]} 49. d6 {[%emt 0:00:11]} 1-0

[Event "Qatar Masters-B 2024"]
[Site "Doha"]
[Date "2024.12.09"]
[Round "6.10"]
[White "Buirzayqah, Mohammed"]
[Black "Achour, Mohamed Anis"]
[Result "0-1"]
[ECO "D05"]
[WhiteElo "1864"]
[BlackElo "2051"]
[Annotator "NA RC"]
[PlyCount "80"]
[EventDate "2024.11.24"]
[EventType "swiss"]
[EventCountry "QAT"]
[SourceTitle "playchess.com"]
[Source "ChessBase"]
[SourceQuality "1"]
[TimeControl "40/5400+30:1800+30"]

1. d4 {[%emt 0:00:05]} d5 {[%emt 0:00:06]} 2. Nf3 {[%emt 0:00:08]} Nf6 {[%emt 0:00:04]} 3. e3 {[%emt 0:00:04]} e6 {[%emt 0:00:04]} 4. Bd3 {[%emt 0:00:03]} b6 {[%emt 0:00:03]} 5. Nbd2 {[%emt 0:02:05]} Bb7 {[%emt 0:00:09]} 6. Ne5 {[%emt 0:12:07]} Be7 {[%emt 0:10:43]} 7. O-O {[%emt 0:01:14]} O-O {[%emt 0:00:29]} 8. f4 {[%emt 0:10:54]} Ne4 {[%emt 0:01:56]} 9. f5 {[%emt 0:06:58]} exf5 {[%emt 0:06:55]} 10. Rxf5 {[%emt 0:00:55]} g6 {[%emt 0:01:29]} 11. Rf1 {[%emt 0:05:16]} f6 {[%emt 0:02:36]} 12. Ng4 {[%emt 0:05:39]} Nd7 {[%emt 0:03:04]} 13. Nxe4 {[%emt 0:13:21]} dxe4 {[%emt 0:01:26]} 14. Bc4+ {[%emt 0:00:34]} Kg7 {[%emt 0:00:12]} 15. b3 {[%emt 0:02:03]} f5 {[%emt 0:01:33]} 16. Nf2 {[%emt 0:00:52]} Bd6 {[%emt 0:11:51]} 17. Nh3 {[%emt 0:02:56]} Nf6 {[%emt 0:10:41]} 18. Bb2 {[%emt 0:12:41]} Qe7 {[%emt 0:28:34]} 19. Qe1 {[%emt 0:08:05]} Rae8 {[%emt 0:02:09]} 20. a3 {[%emt 0:04:08]} Bc8 {[%emt 0:02:50]} 21. Kh1 {[%emt 0:04:42]} Ng4 {[%emt 0:00:57]} 22. g3 {[%emt 0:02:04]} g5 {[%emt 0:00:59]} 23. Rg1 {[%emt 0:02:44]} Qf6 {[%emt 0:00:49]} 24. Rg2 {[%emt 0:01:57]} Qh6 {[%emt 0:00:19]} 25. Nf2 {[%emt 0:00:41]} Nf6 {[%emt 0:02:29]} 26. Qd2 {[%emt 0:00:29]} Bb7 {[%emt 0:01:04]} 27. Kg1 {[%emt 0:00:33]} Kh8 {[%emt 0:01:13]} 28. d5 {[%emt 0:00:20]} Kg8 {[%emt 0:00:17]} 29. h4 {[%emt 0:00:28]} gxh4 {[%emt 0:00:43]} 30. gxh4+ {[%emt 0:00:05]} Kf7 {[%emt 0:00:05]} 31. Nh3 {[%emt 0:00:43]} Qxh4 {[%emt 0:01:10]} 32. Ng5+ {[%emt 0:00:21]} Ke7 {[%emt 0:00:04]} 33. Rf1 {[%emt 0:00:58]} Bc8 {[%emt 0:00:59]} 34. Qd4 {[%emt 0:00:36]} Kd8 {[%emt 0:03:53]} 35. Ne6+ {[%emt 0:00:30]} Bxe6 {[%emt 0:00:44]} 36. dxe6 {[%emt 0:00:01]} Kc8 {[%emt 0:00:49]} 37. Ba6+ {[%emt 0:00:37]} Kb8 {[%emt 0:01:12]} 38. Qc4 {[%emt 0:00:43]} Rg8 {[%emt 0:01:03]} 39. Qe2 {[%emt 0:00:49]} Qh2+ {[%emt 0:00:19]} 40. Kf2 {[%emt 0:00:18]} Rxg2+ {[%emt 0:00:10]} 0-1

[Event "Qatar Masters-B 2024"]
[Site "Doha"]
[Date "2024.12.09"]
[Round "6.11"]
[White "Khalifa Essa, Albalooshi"]
[Black "Abdulazizov, Asilbek"]
[Result "1/2-1/2"]
[ECO "A34"]
[WhiteElo "2050"]
[BlackElo "1691"]
[Annotator "NA RC"]
[PlyCount "94"]
[EventDate "2024.11.24"]
[EventType "swiss"]
[EventCountry "QAT"]
[SourceTitle "playchess.com"]
[Source "ChessBase"]
[SourceQuality "1"]
[TimeControl "40/5400+30:1800+30"]

1. d4 {[%emt 0:00:02]} d5 {[%emt 0:01:15]} 2. c4 {[%emt 0:00:13]} e6 {[%emt 0:00:03]} 3. Nc3 {[%emt 0:00:08]} Nf6 {[%emt 0:00:03]} 4. Nf3 {[%emt 0:00:28]} c5 {[%emt 0:00:41]} 5. cxd5 {[%emt 0:00:06]} Nxd5 {[%emt 0:00:06]} 6. e4 {[%emt 0:01:01]} cxd4 {[%emt 0:07:44]} 7. Qxd4 {[%emt 0:34:06]} Nxc3 {[%emt 0:04:18]} 8. Qxc3 {[%emt 0:00:04]} Nc6 {[%emt 0:00:04]} 9. Bb5 {[%emt 0:00:12]} Qb6 {[%emt 0:02:48]} 10. a4 {[%emt 0:00:40]} a6 {[%emt 0:02:41]} 11. Bxc6+ {[%emt 0:02:46]} Qxc6 {[%emt 0:00:07]} 12. Qxc6+ {[%emt 0:00:14]} bxc6 {[%emt 0:00:04]} 13. a5 {[%emt 0:00:24]} Bb7 {[%emt 0:01:03]} 14. Be3 {[%emt 0:00:48]} Bb4+ {[%emt 0:03:10]} 15. Ke2 {[%emt 0:01:55]} c5 {[%emt 0:02:24]} 16. Rhc1 {[%emt 0:01:16]} Rc8 {[%emt 0:05:50]} 17. Bd2 {[%emt 0:02:00]} Bxd2 {[%emt 0:01:35]} 18. Nxd2 {[%emt 0:00:17]} Ke7 {[%emt 0:01:46]} 19. Ke3 {[%emt 0:00:31]} Rhd8 {[%emt 0:01:55]} 20. Rc3 {[%emt 0:02:26]} Rd4 {[%emt 0:02:10]} 21. Rac1 {[%emt 0:00:21]} Rb4 {[%emt 0:00:15]} 22. b3 {[%emt 0:09:48]} Rb5 {[%emt 0:00:58]} 23. Nc4 {[%emt 0:00:24]} Rb8 {[%emt 0:08:25]} 24. Rd3 {[%emt 0:08:24]} Bc6 {[%emt 0:03:07]} 25. Rcc3 {[%emt 0:16:58]} Rb4 {[%emt 0:01:35]} 26. e5 {[%emt 0:03:14]} R8b5 {[%emt 0:11:57]} 27. Rd6 {[%emt 0:11:56]} Rxb3 {[%emt 0:02:38]} 28. Rxb3 {[%emt 0:01:49]} Rxb3+ {[%emt 0:00:05]} 29. Kd2 {[%emt 0:00:02]} Bb5 {[%emt 0:00:38]} 30. Nb6 {[%emt 0:00:34]} Rb2+ {[%emt 0:00:38]} 31. Kc3 {[%emt 0:01:55]} Ra2 {[%emt 0:00:57]} 32. Nc8+ {[%emt 0:00:19]} Ke8 {[%emt 0:00:05]} 33. Rb6 {[%emt 0:00:11]} Rxa5 {[%emt 0:01:21]} 34. Nd6+ {[%emt 0:00:34]} Ke7 {[%emt 0:01:13]} 35. Rb7+ {[%emt 0:00:29]} Bd7 {[%emt 0:00:48]} 36. Nc8+ {[%emt 0:00:05]} Kd8 {[%emt 0:00:10]} 37. Nb6 {[%emt 0:00:03]} Be8 {[%emt 0:01:46]} 38. Nc4 {[%emt 0:00:24]} Ra2 {[%emt 0:02:09]} 39. Nd6 {[%emt 0:00:20]} Bd7 {[%emt 0:00:57]} 40. Nxf7+ {[%emt 0:00:27]} Ke7 {[%emt 0:00:06]} 41. Nd6 {[%emt 0:30:17]} Kd8 {[%emt 0:31:17]} 42. Nf7+ {[%emt 0:01:21]} Ke7 {[%emt 0:00:13]} 43. Nd6 {[%emt 0:00:01]} Kd8 {[%emt 0:00:31]} 44. Nf7+ {[%emt 0:01:25]} Ke7 {[%emt 0:00:18]} 45. Nd6 Rxf2 46. Ne4 Rf1 {[%emt 0:00:02]} 47. Nxc5 Rd1 {[%emt 0:00:13]} 1/2-1/2

[Event "Qatar Masters-B 2024"]
[Site "Doha"]
[Date "2024.12.09"]
[Round "6.12"]
[White "Akramov, Khasan"]
[Black "Adeimi, Michel"]
[Result "0-1"]
[ECO "E01"]
[WhiteElo "1835"]
[BlackElo "2004"]
[Annotator "NA RC"]
[PlyCount "62"]
[EventDate "2024.11.24"]
[EventType "swiss"]
[EventCountry "QAT"]
[SourceTitle "playchess.com"]
[Source "ChessBase"]
[SourceQuality "1"]
[TimeControl "40/5400+30:1800+30"]

1. c4 {[%emt 0:00:02]} e6 {[%emt 0:00:37]} 2. g3 {[%emt 0:00:06]} d5 {[%emt 0:00:08]} 3. d4 {[%emt 0:00:05]} Nf6 {[%emt 0:00:22]} 4. Bg2 {[%emt 0:01:06]} a6 {[%emt 0:00:22]} 5. Nf3 {[%emt 0:03:31]} Bb4+ {[%emt 0:00:41]} 6. Bd2 {[%emt 0:00:21]} Bxd2+ {[%emt 0:00:27]} 7. Nbxd2 {[%emt 0:00:19]} O-O {[%emt 0:00:31]} 8. O-O {[%emt 0:03:00]} Nc6 {[%emt 0:02:39]} 9. Qc2 {[%emt 0:07:53]} Re8 {[%emt 0:01:28]} 10. Rfd1 {[%emt 0:09:15]} Qe7 {[%emt 0:01:08]} 11. e4 {[%emt 0:13:31]} dxe4 {[%emt 0:03:08]} 12. Nxe4 {[%emt 0:00:08]} e5 {[%emt 0:03:22]} 13. d5 {[%emt 0:11:45]} Bf5 {[%emt 0:06:27]} 14. Nh4 {[%emt 0:07:43]} Bxe4 {[%emt 0:05:45]} 15. Bxe4 {[%emt 0:00:43]} Nd4 {[%emt 0:00:09]} 16. Nf5 {[%emt 0:03:03]} Nxf5 {[%emt 0:15:53]} 17. Bxf5 {[%emt 0:00:06]} e4 {[%emt 0:03:00]} 18. Re1 {[%emt 0:02:09]} Qe5 {[%emt 0:01:34]} 19. Bh3 {[%emt 0:04:10]} Re7 {[%emt 0:01:45]} 20. Bg2 {[%emt 0:04:08]} Rae8 {[%emt 0:00:09]} 21. Re3 {[%emt 0:03:46]} b5 {[%emt 0:05:24]} 22. Rae1 {[%emt 0:05:27]} Qd4 {[%emt 0:02:25]} 23. cxb5 {[%emt 0:03:07]} axb5 {[%emt 0:00:27]} 24. Rd1 {[%emt 0:06:46]} Qa7 {[%emt 0:00:32]} 25. Qe2 {[%emt 0:04:25]} g6 {[%emt 0:02:23]} 26. h3 {[%emt 0:00:33]} Qb7 {[%emt 0:01:13]} 27. d6 {[%emt 0:04:03]} cxd6 {[%emt 0:02:27]} 28. Rxd6 {[%emt 0:01:22]} Kg7 {[%emt 0:00:34]} 29. Qd2 {[%emt 0:00:31]} Re5 {[%emt 0:00:33]} 30. Qd4 {[%emt 0:00:50]} R8e6 {[%emt 0:07:24]} 31. Rxe6 {[%emt 0:01:23]} Rxe6 {[%emt 0:00:19]} 0-1

[Event "Qatar Masters-B 2024"]
[Site "Doha"]
[Date "2024.12.09"]
[Round "6.13"]
[White "Balanandan Ayyappan"]
[Black "Sawan, Eman"]
[Result "1-0"]
[ECO "D02"]
[WhiteElo "1779"]
[BlackElo "2065"]
[Annotator "NA RC"]
[PlyCount "93"]
[EventDate "2024.11.24"]
[EventType "swiss"]
[EventCountry "QAT"]
[SourceTitle "playchess.com"]
[Source "ChessBase"]
[SourceQuality "1"]
[TimeControl "40/5400+30:1800+30"]

1. d4 {[%emt 0:00:15]} Nf6 {[%emt 0:00:05]} 2. Nc3 {[%emt 0:00:03]} d5 {[%emt 0:00:06]} 3. Bf4 {[%emt 0:00:04]} Bf5 {[%emt 0:00:24]} 4. e3 {[%emt 0:00:06]} e6 {[%emt 0:00:08]} 5. Nf3 {[%emt 0:00:06]} Bd6 {[%emt 0:00:33]} 6. Ne5 {[%emt 0:00:08]} Nbd7 {[%emt 0:00:13]} 7. Be2 {[%emt 0:03:01]} h5 {[%emt 0:16:01]} 8. Bd3 {[%emt 0:22:32]} Bxd3 {[%emt 0:11:16]} 9. cxd3 {[%emt 0:04:09]} Bxe5 {[%emt 0:03:53]} 10. dxe5 {[%emt 0:02:13]} Ng4 {[%emt 0:00:29]} 11. d4 {[%emt 0:01:09]} g5 {[%emt 0:01:50]} 12. Bg3 {[%emt 0:00:39]} Qe7 {[%emt 0:13:56]} 13. h3 {[%emt 0:07:00]} Nh6 {[%emt 0:00:05]} 14. Qxh5 {[%emt 0:00:58]} O-O-O {[%emt 0:01:01]} 15. O-O-O {[%emt 0:04:35]} Nf5 {[%emt 0:02:08]} 16. Qf3 {[%emt 0:02:15]} Nb6 {[%emt 0:03:23]} 17. Kb1 {[%emt 0:11:32]} Kb8 {[%emt 0:02:21]} 18. Ka1 {[%emt 0:06:29]} Qb4 {[%emt 0:04:35]} 19. a3 {[%emt 0:05:15]} Qb3 {[%emt 0:03:14]} 20. Qe2 {[%emt 0:00:52]} Nc4 {[%emt 0:01:00]} 21. Rd3 {[%emt 0:00:16]} Qb6 {[%emt 0:03:16]} 22. Rc1 {[%emt 0:03:36]} Qa6 {[%emt 0:11:03]} 23. Qc2 {[%emt 0:04:42]} Nb6 {[%emt 0:07:36]} 24. Na2 {[%emt 0:03:25]} Rc8 {[%emt 0:02:08]} 25. Rc3 {[%emt 0:01:38]} Nc4 {[%emt 0:00:36]} 26. Nb4 {[%emt 0:00:13]} Qa5 {[%emt 0:01:47]} 27. Nd3 {[%emt 0:01:38]} Nxg3 {[%emt 0:01:44]} 28. fxg3 {[%emt 0:00:25]} Nxe3 {[%emt 0:00:45]} 29. Qf2 {[%emt 0:02:02]} Nc4 {[%emt 0:01:34]} 30. Nc5 {[%emt 0:01:25]} Ka8 {[%emt 0:02:41]} 31. Qxf7 {[%emt 0:02:00]} Rce8 {[%emt 0:03:38]} 32. Nxe6 {[%emt 0:01:42]} Qb6 {[%emt 0:00:42]} 33. Nxc7+ {[%emt 0:00:06]} Kb8 {[%emt 0:00:06]} 34. Rxc4 {[%emt 0:00:02]} dxc4 {[%emt 0:02:34]} 35. Nxe8 {[%emt 0:00:07]} Qc6 {[%emt 0:00:37]} 36. Nd6 {[%emt 0:00:22]} b5 {[%emt 0:00:15]} 37. d5 {[%emt 0:00:38]} Qb6 {[%emt 0:00:15]} 38. Qd7 {[%emt 0:00:41]} a6 {[%emt 0:00:09]} 39. Qc6 {[%emt 0:01:13]} Qxc6 {[%emt 0:00:29]} 40. dxc6 {[%emt 0:00:07]} Kc7 {[%emt 0:00:10]} 41. Re1 {[%emt 0:30:23]} Kxc6 {[%emt 0:30:12]} 42. Nf7 {[%emt 0:00:02]} Re8 {[%emt 0:00:22]} 43. h4 {[%emt 0:00:10]} gxh4 {[%emt 0:00:02]} 44. gxh4 {[%emt 0:00:06]} a5 {[%emt 0:00:02]} 45. h5 {[%emt 0:00:10]} b4 {[%emt 0:00:05]} 46. h6 {[%emt 0:00:04]} c3 {[%emt 0:01:33]} 47. bxc3 {[%emt 0:00:38]} 1-0

[Event "Qatar Masters-B 2024"]
[Site "Doha"]
[Date "2024.12.09"]
[Round "6.14"]
[White "Mua, Nasrudin"]
[Black "Wazwaz, Amjad"]
[Result "0-1"]
[ECO "B11"]
[WhiteElo "1717"]
[BlackElo "1956"]
[Annotator "NA RC"]
[PlyCount "112"]
[EventDate "2024.11.24"]
[EventType "swiss"]
[EventCountry "QAT"]
[SourceTitle "playchess.com"]
[Source "ChessBase"]
[SourceQuality "1"]
[TimeControl "40/5400+30:1800+30"]

1. e4 {[%emt 0:00:13]} c6 {[%emt 0:01:07]} 2. Nf3 {[%emt 0:00:49]} d5 {[%emt 0:00:09]} 3. Nc3 {[%emt 0:00:13]} Bg4 {[%emt 0:00:28]} 4. exd5 {[%emt 0:03:16]} cxd5 {[%emt 0:00:08]} 5. Bb5+ {[%emt 0:00:20]} Nc6 {[%emt 0:00:10]} 6. h3 {[%emt 0:01:33]} Bxf3 {[%emt 0:00:44]} 7. Qxf3 {[%emt 0:00:18]} e6 {[%emt 0:00:17]} 8. O-O {[%emt 0:00:25]} Bd6 {[%emt 0:00:36]} 9. Re1 {[%emt 0:02:02]} Nge7 {[%emt 0:00:12]} 10. Qh5 {[%emt 0:01:19]} O-O {[%emt 0:00:30]} 11. Bd3 {[%emt 0:00:38]} g6 {[%emt 0:00:09]} 12. Qg5 {[%emt 0:03:50]} Rc8 {[%emt 0:00:51]} 13. b3 {[%emt 0:00:52]} Nb4 {[%emt 0:00:41]} 14. Bb2 {[%emt 0:01:01]} Nxd3 {[%emt 0:00:50]} 15. cxd3 {[%emt 0:00:13]} Nf5 {[%emt 0:00:22]} 16. Qg4 {[%emt 0:02:07]} Bb8 {[%emt 0:01:35]} 17. g3 {[%emt 0:01:07]} h5 {[%emt 0:00:46]} 18. Qf3 {[%emt 0:02:29]} Nd4 {[%emt 0:01:03]} 19. Qe3 {[%emt 0:00:46]} e5 {[%emt 0:02:34]} 20. Rac1 {[%emt 0:01:24]} Qd7 {[%emt 0:02:42]} 21. Kg2 {[%emt 0:01:17]} Rc6 {[%emt 0:01:58]} 22. Qg5 {[%emt 0:04:15]} Ne6 {[%emt 0:03:55]} 23. Qh6 {[%emt 0:05:28]} Ng7 {[%emt 0:02:46]} 24. Na4 {[%emt 0:03:03]} Rxc1 {[%emt 0:00:35]} 25. Rxc1 {[%emt 0:00:34]} d4 {[%emt 0:00:25]} 26. Nc5 {[%emt 0:00:50]} Qd5+ {[%emt 0:00:30]} 27. Ne4 {[%emt 0:00:18]} Nf5 {[%emt 0:04:46]} 28. Qg5 {[%emt 0:00:17]} Bd6 {[%emt 0:04:49]} 29. f3 {[%emt 0:00:40]} Be7 {[%emt 0:03:41]} 30. Nf6+ {[%emt 0:00:37]} Bxf6 {[%emt 0:00:07]} 31. Qxf6 {[%emt 0:00:28]} Qa5 {[%emt 0:00:28]} 32. Rc2 {[%emt 0:11:18]} Qxa2 {[%emt 0:00:47]} 33. Qxe5 {[%emt 0:07:06]} Qxb3 {[%emt 0:00:21]} 34. Qc5 {[%emt 0:04:20]} Qxd3 {[%emt 0:00:33]} 35. Qc4 {[%emt 0:00:17]} Qxc4 {[%emt 0:01:38]} 36. Rxc4 {[%emt 0:00:07]} Rd8 {[%emt 0:08:17]} 37. g4 {[%emt 0:01:23]} hxg4 {[%emt 0:00:33]} 38. hxg4 {[%emt 0:00:24]} Ng7 {[%emt 0:01:08]} 39. Rc7 {[%emt 0:00:35]} Ne6 {[%emt 0:03:12]} 40. Rxb7 {[%emt 0:00:31]} Rc8 {[%emt 0:00:24]} 41. Ba3 {[%emt 0:32:36]} a6 {[%emt 0:33:30]} 42. Kf2 {[%emt 0:01:27]} Rc2 {[%emt 0:00:20]} 43. Ke1 {[%emt 0:01:36]} Kg7 {[%emt 0:00:29]} 44. Be7 {[%emt 0:01:44]} Rc7 {[%emt 0:01:15]} 45. Rxc7 {[%emt 0:01:29]} Nxc7 {[%emt 0:00:05]} 46. Bd8 {[%emt 0:01:29]} Ne6 {[%emt 0:00:32]} 47. Bb6 {[%emt 0:03:42]} Kf6 {[%emt 0:00:33]} 48. Ba7 {[%emt 0:07:56]} Ke5 {[%emt 0:00:54]} 49. Bb8+ {[%emt 0:00:19]} Kd5 {[%emt 0:00:18]} 50. Kd1 {[%emt 0:00:33]} d3 {[%emt 0:00:51]} 51. Ke1 {[%emt 0:06:45]} a5 {[%emt 0:00:31]} 52. f4 {[%emt 0:02:20]} f5 {[%emt 0:00:12]} 53. gxf5 {[%emt 0:01:11]} gxf5 {[%emt 0:00:09]} 54. Be5 {[%emt 0:00:51]} Ke4 {[%emt 0:00:16]} 55. Bc3 {[%emt 0:01:12]} a4 {[%emt 0:00:11]} 56. Kf2 {[%emt 0:00:39]} Nxf4 {[%emt 0:00:17]} 0-1